[Event "January 9 Early 2024"]
[Site "https://www.chess.com"]
[Date "2024.01.11"]
[Round "2"]
[White "Bluebaum, Matthias"]
[Black "Cremisi, Daniel"]
[Result "1-0"]
[Board "319"]
[TimeControl "180+1"]
[WhiteFideId "24651516"]
[BlackFideId "2089882"]
[WhiteElo "3080"]
[BlackElo "2675"]
[WhiteTeam "GER"]
[BlackTeam "USA"]
[WhiteClock "0:00:21"]
[BlackClock "0:00:04"]

1. d4 {[%clk 0:03:00]}  d5 {[%clk 0:02:59]} 2. c4 {[%clk 0:03:01]}  c6 {[%clk 0:02:59]} 3. Nf3 {[%clk 0:03:01]}  Nf6 {[%clk 0:02:59]} 4. Nc3 {[%clk 0:03:01]}  e6 {[%clk 0:03:00]} 5. Qc2 {[%clk 0:03:02]}  Nbd7 {[%clk 0:02:59]} 6. cxd5 {[%clk 0:03:02]}  exd5 {[%clk 0:02:53]} 7. Bg5 {[%clk 0:03:02]}  Be7 {[%clk 0:02:53]} 8. e3 {[%clk 0:03:03]}  h6 {[%clk 0:02:53]} 9. Bh4 {[%clk 0:03:02]}  O-O {[%clk 0:02:54]} 10. Bd3 {[%clk 0:03:02]}  Re8 {[%clk 0:02:54]} 11. O-O {[%clk 0:03:02]}  b6 {[%clk 0:02:55]} 12. Ne5 {[%clk 0:02:59]}  Nxe5 {[%clk 0:02:54]} 13. dxe5 {[%clk 0:03:00]}  Nd7 {[%clk 0:02:54]} 14. Bxe7 {[%clk 0:03:00]}  Qxe7 {[%clk 0:02:55]} 15. f4 {[%clk 0:03:01]}  Bb7 {[%clk 0:02:54]} 16. Rae1 {[%clk 0:03:00]}  Rad8 {[%clk 0:02:53]} 17. Qf2 {[%clk 0:03:00]}  Nc5 {[%clk 0:02:53]} 18. Bb1 {[%clk 0:03:00]}  Ba6 {[%clk 0:02:50]} 19. Ne2 {[%clk 0:02:55]}  Nd3 {[%clk 0:02:47]} 20. Bxd3 {[%clk 0:02:53]}  Bxd3 {[%clk 0:02:48]} 21. Rd1 {[%clk 0:02:50]}  Bxe2 {[%clk 0:02:48]} 22. Qxe2 {[%clk 0:02:51]}  f6 {[%clk 0:02:49]} 23. Qc2 {[%clk 0:02:42]}  fxe5 {[%clk 0:02:48]} 24. Qxc6 {[%clk 0:02:42]}  exf4 {[%clk 0:02:47]} 25. exf4 {[%clk 0:02:43]}  Rd6 {[%clk 0:02:42]} 26. Qb5 {[%clk 0:02:38]}  d4 {[%clk 0:02:38]} 27. Qd3 {[%clk 0:02:35]}  Qe3+ {[%clk 0:02:38]} 28. Qxe3 {[%clk 0:02:35]}  Rxe3 {[%clk 0:02:38]} 29. Rfe1 {[%clk 0:02:34]}  Rxe1+ {[%clk 0:02:34]} 30. Rxe1 {[%clk 0:02:35]}  Rc6 {[%clk 0:02:35]} 31. Rd1 {[%clk 0:02:21]}  Rc2 {[%clk 0:02:34]} 32. Rxd4 {[%clk 0:02:20]}  Rxb2 {[%clk 0:02:34]} 33. a4 {[%clk 0:02:19]}  Ra2 {[%clk 0:02:34]} 34. h4 {[%clk 0:02:15]}  Kf8 {[%clk 0:02:28]} 35. Kh2 {[%clk 0:02:08]}  Ke7 {[%clk 0:02:28]} 36. Kg3 {[%clk 0:02:07]}  Ra3+ {[%clk 0:02:22]} 37. Kg4 {[%clk 0:02:06]}  Ra2 {[%clk 0:02:22]} 38. g3 {[%clk 0:02:06]}  Ra3 {[%clk 0:02:22]} 39. h5 {[%clk 0:02:06]}  Ke6 {[%clk 0:02:22]} 40. Re4+ {[%clk 0:02:01]}  Kf6 {[%clk 0:02:21]} 41. Rc4 {[%clk 0:02:01]}  a5 {[%clk 0:02:02]} 42. Rc6+ {[%clk 0:01:55]}  Kf7 {[%clk 0:02:02]} 43. Rxb6 {[%clk 0:01:47]}  Rxa4 {[%clk 0:02:02]} 44. Ra6 {[%clk 0:01:46]}  Ra3 {[%clk 0:02:00]} 45. Ra7+ {[%clk 0:01:24]}  Kf6 {[%clk 0:01:59]} 46. Ra6+ {[%clk 0:01:23]}  Kf7 {[%clk 0:02:00]} 47. Kh4 {[%clk 0:01:18]}  a4 {[%clk 0:01:58]} 48. Kg4 {[%clk 0:01:19]}  Ke7 {[%clk 0:01:54]} 49. Ra5 {[%clk 0:01:15]}  Kf7 {[%clk 0:01:52]} 50. Ra8 {[%clk 0:01:11]}  Kf6 {[%clk 0:01:47]} 51. Ra7 {[%clk 0:01:11]}  Ra1 {[%clk 0:01:28]} 52. Ra6+ {[%clk 0:01:11]}  Kf7 {[%clk 0:01:28]} 53. Kf5 {[%clk 0:01:12]}  Rg1 {[%clk 0:00:53]} 54. g4 {[%clk 0:01:10]}  Rb1 {[%clk 0:00:52]} 55. Rxa4 {[%clk 0:01:00]}  Rb5+ {[%clk 0:00:51]} 56. Ke4 {[%clk 0:01:00]}  Rb1 {[%clk 0:00:51]} 57. Rd4 {[%clk 0:01:00]}  Ra1 {[%clk 0:00:51]} 58. Rd5 {[%clk 0:01:00]}  Rb1 {[%clk 0:00:51]} 59. Kf5 {[%clk 0:01:00]}  Rb7 {[%clk 0:00:49]} 60. Ra5 {[%clk 0:01:00]}  Rc7 {[%clk 0:00:50]} 61. Ke5 {[%clk 0:00:44]}  Rb7 {[%clk 0:00:48]} 62. Rd5 {[%clk 0:00:43]}  Rc7 {[%clk 0:00:47]} 63. Kf5 {[%clk 0:00:37]}  Rb7 {[%clk 0:00:46]} 64. Rc5 {[%clk 0:00:37]}  Ra7 {[%clk 0:00:46]} 65. g5 {[%clk 0:00:37]}  hxg5 {[%clk 0:00:46]} 66. Kxg5 {[%clk 0:00:37]}  Ra1 {[%clk 0:00:44]} 67. Rc7+ {[%clk 0:00:34]}  Kf8 {[%clk 0:00:44]} 68. Rb7 {[%clk 0:00:24]}  Ra2 {[%clk 0:00:39]} 69. Kf5 {[%clk 0:00:21]}  Ra5+ {[%clk 0:00:37]} 70. Kg4 {[%clk 0:00:21]}  Ra1 {[%clk 0:00:33]} 71. Kg5 {[%clk 0:00:21]}  Ra5+ {[%clk 0:00:33]} 72. f5 {[%clk 0:00:21]}  Ra1 {[%clk 0:00:29]} 73. h6 {[%clk 0:00:19]}  Rg1+ {[%clk 0:00:21]} 74. Kf4 {[%clk 0:00:19]}  gxh6 {[%clk 0:00:21]} 75. Ke5 {[%clk 0:00:20]}  Ra1 {[%clk 0:00:11]} 76. Rb6 {[%clk 0:00:20]}  h5 {[%clk 0:00:11]} 77. Kf6 {[%clk 0:00:20]}  Ra8 {[%clk 0:00:02]} 78. Kg6 {[%clk 0:00:20]}  h4 {[%clk 0:00:02]} 79. Rb7 {[%clk 0:00:20]}  Ra6+ {[%clk 0:00:02]} 80. f6 {[%clk 0:00:20]}  Ra8 {[%clk 0:00:03]} 81. Rh7 {[%clk 0:00:20]}  Kg8 {[%clk 0:00:03]} 82. f7+ {[%clk 0:00:20]}  Kf8 {[%clk 0:00:04]} 83. Rh8+ {[%clk 0:00:21]} 1-0

[Event "January 9 Early 2024"]
[Site "https://www.chess.com"]
[Date "2024.01.11"]
[Round "2"]
[White "Shimanov, Aleksandr"]
[Black "Skliarov, Viktor"]
[Result "0-1"]
[Board "321"]
[TimeControl "180+1"]
[WhiteFideId "4198603"]
[BlackFideId "14106736"]
[WhiteElo "2993"]
[BlackElo "2667"]
[WhiteTeam "RUS"]
[BlackTeam "UKR"]
[WhiteClock "0:00:05"]
[BlackClock "0:00:07"]

1. g3 {[%clk 0:03:00]}  g6 {[%clk 0:02:59]} 2. d4 {[%clk 0:03:00]}  Bg7 {[%clk 0:02:59]} 3. Bg2 {[%clk 0:03:00]}  Nf6 {[%clk 0:02:59]} 4. e4 {[%clk 0:02:59]}  O-O {[%clk 0:02:59]} 5. Ne2 {[%clk 0:02:59]}  d6 {[%clk 0:02:59]} 6. O-O {[%clk 0:02:57]}  c5 {[%clk 0:02:59]} 7. Nbc3 {[%clk 0:02:55]}  cxd4 {[%clk 0:02:58]} 8. Nxd4 {[%clk 0:02:56]}  Nc6 {[%clk 0:02:58]} 9. Nxc6 {[%clk 0:02:54]}  bxc6 {[%clk 0:02:58]} 10. Qd2 {[%clk 0:02:51]}  Rb8 {[%clk 0:02:52]} 11. b3 {[%clk 0:02:51]}  Qa5 {[%clk 0:02:45]} 12. Bb2 {[%clk 0:02:50]}  Qh5 {[%clk 0:02:39]} 13. f3 {[%clk 0:02:44]}  Bh3 {[%clk 0:02:34]} 14. Rad1 {[%clk 0:02:42]}  Bxg2 {[%clk 0:02:30]} 15. Kxg2 {[%clk 0:02:43]}  Rfd8 {[%clk 0:02:18]} 16. Qe2 {[%clk 0:02:36]}  Qa5 {[%clk 0:01:58]} 17. Na4 {[%clk 0:02:35]}  Nd7 {[%clk 0:01:53]} 18. Bxg7 {[%clk 0:02:31]}  Kxg7 {[%clk 0:01:54]} 19. Qf2 {[%clk 0:02:12]}  Nb6 {[%clk 0:01:48]} 20. Nxb6 {[%clk 0:02:08]}  axb6 {[%clk 0:01:46]} 21. a4 {[%clk 0:02:07]}  b5 {[%clk 0:01:44]} 22. Ra1 {[%clk 0:02:07]}  Qc3 {[%clk 0:01:26]} 23. Rfd1 {[%clk 0:02:03]}  bxa4 {[%clk 0:01:23]} 24. Rxa4 {[%clk 0:02:03]}  c5 {[%clk 0:01:04]} 25. Rd3 {[%clk 0:01:59]}  Qb2 {[%clk 0:00:59]} 26. Ra7 {[%clk 0:01:53]}  Re8 {[%clk 0:00:57]} 27. Qd2 {[%clk 0:01:50]}  Ra8 {[%clk 0:00:53]} 28. Rd7 {[%clk 0:01:40]}  Ra2 {[%clk 0:00:40]} 29. Rc3 {[%clk 0:01:38]}  Ra1 {[%clk 0:00:40]} 30. e5 {[%clk 0:01:27]}  Qb1 {[%clk 0:00:33]} 31. Qe2 {[%clk 0:01:22]}  Qg1+ {[%clk 0:00:17]} 32. Kh3 {[%clk 0:01:22]}  Re1 {[%clk 0:00:17]} 33. Qg2 {[%clk 0:01:00]}  Qd4 {[%clk 0:00:17]} 34. Rd3 {[%clk 0:00:58]}  Qxe5 {[%clk 0:00:17]} 35. g4 {[%clk 0:00:55]}  Re2 {[%clk 0:00:17]} 36. Qg3 {[%clk 0:00:55]}  Qe6 {[%clk 0:00:14]} 37. Ra7 {[%clk 0:00:54]}  h5 {[%clk 0:00:14]} 38. Qf4 {[%clk 0:00:37]}  hxg4+ {[%clk 0:00:13]} 39. Kg3 {[%clk 0:00:38]}  Rh8 {[%clk 0:00:11]} 40. Qxg4 {[%clk 0:00:33]}  Qe5+ {[%clk 0:00:09]} 41. f4 {[%clk 0:00:31]}  Re3+ {[%clk 0:00:08]} 42. Rxe3 {[%clk 0:00:32]}  Qxe3+ {[%clk 0:00:08]} 43. Kg2 {[%clk 0:00:32]}  Qd2+ {[%clk 0:00:07]} 44. Kf3 {[%clk 0:00:32]}  Qd1+ {[%clk 0:00:06]} 45. Kg3 {[%clk 0:00:32]}  Qg1+ {[%clk 0:00:06]} 46. Kf3 {[%clk 0:00:33]}  Qxh2 {[%clk 0:00:07]} 47. Rxe7 {[%clk 0:00:05]}  Rh3+ {[%clk 0:00:06]} 48. Ke4 {[%clk 0:00:06]}  Qxc2+ {[%clk 0:00:06]} 49. Kd5 {[%clk 0:00:06]}  Qxb3+ {[%clk 0:00:06]} 50. Kc6 {[%clk 0:00:06]}  Rh8 {[%clk 0:00:04]} 51. Qd7 {[%clk 0:00:05]}  Rf8 {[%clk 0:00:04]} 52. Qxd6 {[%clk 0:00:05]}  Qc3 {[%clk 0:00:03]} 53. Qd5 {[%clk 0:00:03]}  c4 {[%clk 0:00:03]} 54. Kd7 {[%clk 0:00:03]}  Qd3 {[%clk 0:00:04]} 55. Qxd3 {[%clk 0:00:02]}  cxd3 {[%clk 0:00:04]} 56. Re3 {[%clk 0:00:03]}  Rh8 {[%clk 0:00:04]} 57. Rxd3 {[%clk 0:00:03]}  Rh4 {[%clk 0:00:05]} 58. Rd4 {[%clk 0:00:03]}  Kf6 {[%clk 0:00:05]} 59. Ke8 {[%clk 0:00:03]}  Rh8+ {[%clk 0:00:05]} 60. Kd7 {[%clk 0:00:04]}  Kf5 {[%clk 0:00:05]} 61. Ke7 {[%clk 0:00:04]}  Rh7 {[%clk 0:00:06]} 62. Ra4 {[%clk 0:00:04]}  f6+ {[%clk 0:00:06]} 63. Kd6 {[%clk 0:00:04]}  Rh4 {[%clk 0:00:06]} 64. Ra5+ {[%clk 0:00:05]}  Kxf4 {[%clk 0:00:06]} 65. Ke6 {[%clk 0:00:05]}  f5 {[%clk 0:00:06]} 66. Kf6 {[%clk 0:00:06]}  Rg4 {[%clk 0:00:06]} 67. Ra4+ {[%clk 0:00:05]}  Kg3 {[%clk 0:00:07]} 68. Ra3+ {[%clk 0:00:06]}  Kh4 {[%clk 0:00:07]} 69. Ra8 {[%clk 0:00:06]}  Rg3 {[%clk 0:00:07]} 70. Ra4+ {[%clk 0:00:05]}  Kh3 {[%clk 0:00:07]} 71. Rb4 {[%clk 0:00:05]}  Rg4 {[%clk 0:00:05]} 72. Rb3+ {[%clk 0:00:05]}  Kh4 {[%clk 0:00:06]} 73. Rb1 {[%clk 0:00:05]}  f4 {[%clk 0:00:06]} 74. Rh1+ {[%clk 0:00:04]}  Kg3 {[%clk 0:00:06]} 75. Rg1+ {[%clk 0:00:04]}  Kf3 {[%clk 0:00:06]} 76. Rf1+ {[%clk 0:00:04]}  Kg2 {[%clk 0:00:07]} 77. Ra1 {[%clk 0:00:04]}  f3 {[%clk 0:00:07]} 78. Ra2+ {[%clk 0:00:04]}  f2 {[%clk 0:00:08]} 79. Rb2 {[%clk 0:00:05]}  Kg1 {[%clk 0:00:07]} 0-1

[Event "January 9 Early 2024"]
[Site "https://www.chess.com"]
[Date "2024.01.11"]
[Round "2"]
[White "Garrido, Denis"]
[Black "Leiva, Gianmarco"]
[Result "0-1"]
[Board "322"]
[TimeControl "180+1"]
[WhiteFideId "601217"]
[BlackFideId "3804399"]
[WhiteElo "2399"]
[BlackElo "2698"]
[WhiteTeam "FRA"]
[BlackTeam "PER"]
[WhiteClock "0:00:07"]
[BlackClock "0:00:02"]

1. e4 {[%clk 0:03:00]}  c6 {[%clk 0:02:58]} 2. Nf3 {[%clk 0:02:59]}  d5 {[%clk 0:02:59]} 3. d3 {[%clk 0:02:59]}  dxe4 {[%clk 0:02:53]} 4. dxe4 {[%clk 0:03:00]}  Qxd1+ {[%clk 0:02:54]} 5. Kxd1 {[%clk 0:03:01]}  h5 {[%clk 0:02:55]} 6. c3 {[%clk 0:02:59]}  h4 {[%clk 0:02:50]} 7. h3 {[%clk 0:02:54]}  Nf6 {[%clk 0:02:49]} 8. Nbd2 {[%clk 0:02:46]}  Nbd7 {[%clk 0:02:29]} 9. Kc2 {[%clk 0:02:45]}  e5 {[%clk 0:02:29]} 10. Ne1 {[%clk 0:02:24]}  Nc5 {[%clk 0:02:28]} 11. f3 {[%clk 0:02:23]}  Nh5 {[%clk 0:02:22]} 12. b4 {[%clk 0:02:20]}  Ne6 {[%clk 0:02:15]} 13. Nc4 {[%clk 0:02:18]}  f6 {[%clk 0:02:16]} 14. Be3 {[%clk 0:02:13]}  b6 {[%clk 0:02:11]} 15. Rg1 {[%clk 0:02:00]}  Ng3 {[%clk 0:01:52]} 16. Bd3 {[%clk 0:01:47]}  Kd8 {[%clk 0:01:48]} 17. a4 {[%clk 0:01:46]}  Kc7 {[%clk 0:01:47]} 18. a5 {[%clk 0:01:45]}  b5 {[%clk 0:01:48]} 19. Nd2 {[%clk 0:01:45]}  Nf4 {[%clk 0:01:22]} 20. c4 {[%clk 0:01:37]}  Nxd3 {[%clk 0:01:17]} 21. Nxd3 {[%clk 0:01:38]}  bxc4 {[%clk 0:01:06]} 22. Nxc4 {[%clk 0:01:39]}  Ba6 {[%clk 0:01:06]} 23. Kb3 {[%clk 0:01:31]}  Rd8 {[%clk 0:00:58]} 24. Rgd1 {[%clk 0:01:24]}  Kb7 {[%clk 0:00:55]} 25. Nc5+ {[%clk 0:01:22]}  Bxc5 {[%clk 0:00:55]} 26. Bxc5 {[%clk 0:01:21]}  Bxc4+ {[%clk 0:00:40]} 27. Kxc4 {[%clk 0:01:21]}  Nh5 {[%clk 0:00:34]} 28. a6+ {[%clk 0:01:02]}  Kc7 {[%clk 0:00:23]} 29. Bxa7 {[%clk 0:00:59]}  Rxd1 {[%clk 0:00:23]} 30. Rxd1 {[%clk 0:00:59]}  Ra8 {[%clk 0:00:24]} 31. Bc5 {[%clk 0:00:46]}  Rxa6 {[%clk 0:00:25]} 32. Rd2 {[%clk 0:00:42]}  Nf4 {[%clk 0:00:24]} 33. Bd6+ {[%clk 0:00:39]}  Kc8 {[%clk 0:00:24]} 34. Bf8 {[%clk 0:00:30]}  Ne6 {[%clk 0:00:24]} 35. Bc5 {[%clk 0:00:29]}  Ra1 {[%clk 0:00:17]} 36. Rc2 {[%clk 0:00:24]}  Rb1 {[%clk 0:00:14]} 37. Bb6 {[%clk 0:00:19]}  Kb7 {[%clk 0:00:06]} 38. Bc5 {[%clk 0:00:18]}  Kc7 {[%clk 0:00:07]} 39. Be7 {[%clk 0:00:16]}  Kc8 {[%clk 0:00:05]} 40. Bc5 {[%clk 0:00:16]}  Kb7 {[%clk 0:00:04]} 41. Bf2 {[%clk 0:00:16]}  Kc7 {[%clk 0:00:03]} 42. Bxh4 {[%clk 0:00:16]}  Rd1 {[%clk 0:00:03]} 43. Bf2 {[%clk 0:00:16]}  Nf4 {[%clk 0:00:02]} 44. Be3 {[%clk 0:00:15]}  Ne6 {[%clk 0:00:02]} 45. g4 {[%clk 0:00:11]}  Rh1 {[%clk 0:00:01]} 46. g5 {[%clk 0:00:11]}  fxg5 {[%clk 0:00:01]} 47. Rg2 {[%clk 0:00:10]}  Rxh3 {[%clk 0:00:02]} 48. Bxg5 {[%clk 0:00:11]}  Rxf3 {[%clk 0:00:02]} 49. Bd2 {[%clk 0:00:09]}  Rf7 {[%clk 0:00:02]} 50. Bc3 {[%clk 0:00:09]}  Nd4 {[%clk 0:00:01]} 51. Bxd4 {[%clk 0:00:09]}  exd4 {[%clk 0:00:02]} 52. Kxd4 {[%clk 0:00:10]}  Kb6 {[%clk 0:00:03]} 53. Rg5 {[%clk 0:00:10]}  Rd7+ {[%clk 0:00:03]} 54. Ke5 {[%clk 0:00:10]}  Re7+ {[%clk 0:00:04]} 55. Kf5 {[%clk 0:00:09]}  Kb5 {[%clk 0:00:04]} 56. e5 {[%clk 0:00:08]}  Kxb4 {[%clk 0:00:05]} 57. e6 {[%clk 0:00:08]}  c5 {[%clk 0:00:05]} 58. Rg4+ {[%clk 0:00:07]}  c4 {[%clk 0:00:06]} 59. Ke5 {[%clk 0:00:08]}  Kb3 {[%clk 0:00:05]} 60. Kd6 {[%clk 0:00:09]}  Re8 {[%clk 0:00:04]} 61. Kd7 {[%clk 0:00:09]}  Ra8 {[%clk 0:00:05]} 62. e7 {[%clk 0:00:08]}  c3 {[%clk 0:00:05]} 63. Rg6 {[%clk 0:00:02]}  Ra7+ {[%clk 0:00:04]} 64. Kd8 {[%clk 0:00:02]}  c2 {[%clk 0:00:04]} 65. Rb6+ {[%clk 0:00:02]}  Ka2 {[%clk 0:00:03]} 66. e8=Q {[%clk 0:00:02]}  Ra8+ {[%clk 0:00:03]} 67. Ke7 {[%clk 0:00:01]}  Rxe8+ {[%clk 0:00:04]} 68. Kxe8 {[%clk 0:00:02]}  c1=Q {[%clk 0:00:04]} 69. Ra6+ {[%clk 0:00:02]}  Kb3 {[%clk 0:00:04]} 70. Rb6+ {[%clk 0:00:03]}  Ka4 {[%clk 0:00:05]} 71. Ra6+ {[%clk 0:00:03]}  Kb5 {[%clk 0:00:05]} 72. Rg6 {[%clk 0:00:04]}  Qe3+ {[%clk 0:00:03]} 73. Kf7 {[%clk 0:00:05]}  Qf4+ {[%clk 0:00:03]} 74. Kxg7 {[%clk 0:00:05]}  Kc5 {[%clk 0:00:02]} 75. Rf6 {[%clk 0:00:06]}  Qg5+ {[%clk 0:00:03]} 76. Kf7 {[%clk 0:00:06]}  Kd5 {[%clk 0:00:03]} 77. Rg6 {[%clk 0:00:07]}  Qh5 {[%clk 0:00:03]} 78. Kg7 {[%clk 0:00:07]}  Ke5 {[%clk 0:00:03]} 79. Ra6 {[%clk 0:00:07]}  Qg4+ {[%clk 0:00:02]} 80. Kf8 {[%clk 0:00:07]}  Qc8+ {[%clk 0:00:02]} 0-1

[Event "January 9 Early 2024"]
[Site "https://www.chess.com"]
[Date "2024.01.11"]
[Round "2"]
[White "Ovezdurdyyeva, Jemal"]
[Black "Feliz Dotel, Dewar Bienvenido"]
[Result "1/2-1/2"]
[Board "323"]
[TimeControl "180+1"]
[WhiteFideId "14001888"]
[BlackFideId "6402801"]
[WhiteElo "2445"]
[BlackElo "2151"]
[WhiteTeam "TKM"]
[BlackTeam "DOM"]
[WhiteClock "0:00:12"]
[BlackClock "0:00:07"]

1. e4 {[%clk 0:03:00]}  c5 {[%clk 0:02:59]} 2. Nf3 {[%clk 0:03:00]}  g6 {[%clk 0:02:59]} 3. c3 {[%clk 0:03:00]}  Nf6 {[%clk 0:02:59]} 4. Bd3 {[%clk 0:02:56]}  d5 {[%clk 0:02:57]} 5. e5 {[%clk 0:02:51]}  Nfd7 {[%clk 0:02:57]} 6. O-O {[%clk 0:02:48]}  Nc6 {[%clk 0:02:54]} 7. Re1 {[%clk 0:02:47]}  e6 {[%clk 0:02:52]} 8. Bf1 {[%clk 0:02:40]}  c4 {[%clk 0:02:51]} 9. b3 {[%clk 0:02:35]}  Bg7 {[%clk 0:02:00]} 10. bxc4 {[%clk 0:02:33]}  dxc4 {[%clk 0:02:01]} 11. Bxc4 {[%clk 0:02:30]}  Ndxe5 {[%clk 0:01:54]} 12. Bb5 {[%clk 0:02:27]}  O-O {[%clk 0:01:49]} 13. d4 {[%clk 0:02:25]}  Nxf3+ {[%clk 0:01:45]} 14. Qxf3 {[%clk 0:02:26]}  Ne7 {[%clk 0:01:42]} 15. Bg5 {[%clk 0:02:22]}  a6 {[%clk 0:01:27]} 16. Bd3 {[%clk 0:02:16]}  h6 {[%clk 0:01:18]} 17. Bh4 {[%clk 0:02:15]}  Qc7 {[%clk 0:01:14]} 18. Nd2 {[%clk 0:02:06]}  Nf5 {[%clk 0:01:02]} 19. Bxf5 {[%clk 0:02:03]}  exf5 {[%clk 0:01:03]} 20. Re7 {[%clk 0:02:01]}  Qc6 {[%clk 0:00:54]} 21. h3 {[%clk 0:01:44]}  Be6 {[%clk 0:00:44]} 22. Qxc6 {[%clk 0:01:36]}  bxc6 {[%clk 0:00:44]} 23. Bg3 {[%clk 0:01:37]}  c5 {[%clk 0:00:42]} 24. Nf3 {[%clk 0:01:27]}  cxd4 {[%clk 0:00:39]} 25. cxd4 {[%clk 0:01:25]}  Bd5 {[%clk 0:00:33]} 26. Ne5 {[%clk 0:01:22]}  Rfe8 {[%clk 0:00:24]} 27. Rxe8+ {[%clk 0:01:17]}  Rxe8 {[%clk 0:00:24]} 28. a4 {[%clk 0:01:06]}  g5 {[%clk 0:00:17]} 29. f3 {[%clk 0:01:04]}  f4 {[%clk 0:00:15]} 30. Be1 {[%clk 0:00:59]}  Bxe5 {[%clk 0:00:15]} 31. dxe5 {[%clk 0:00:57]}  Rxe5 {[%clk 0:00:16]} 32. Rd1 {[%clk 0:00:55]}  Bb3 {[%clk 0:00:15]} 33. Rd8+ {[%clk 0:00:54]}  Kh7 {[%clk 0:00:15]} 34. Bc3 {[%clk 0:00:55]}  Re3 {[%clk 0:00:10]} 35. Bd4 {[%clk 0:00:45]}  Rd3 {[%clk 0:00:09]} 36. a5 {[%clk 0:00:44]}  Bc4 {[%clk 0:00:09]} 37. Rh8+ {[%clk 0:00:41]}  Kg6 {[%clk 0:00:09]} 38. Bc5 {[%clk 0:00:42]}  Bb5 {[%clk 0:00:06]} 39. Bf8 {[%clk 0:00:37]}  Rd1+ {[%clk 0:00:05]} 40. Kh2 {[%clk 0:00:37]}  Rd2 {[%clk 0:00:02]} 41. Rxh6+ {[%clk 0:00:36]}  Kf5 {[%clk 0:00:02]} 42. Rh7 {[%clk 0:00:20]}  Bf1 {[%clk 0:00:02]} 43. Rxf7+ {[%clk 0:00:19]}  Kg6 {[%clk 0:00:01]} 44. Ra7 {[%clk 0:00:18]}  Rxg2+ {[%clk 0:00:01]} 45. Kh1 {[%clk 0:00:19]}  Rg3 {[%clk 0:00:01]} 46. Rg7+ {[%clk 0:00:15]}  Kf6 {[%clk 0:00:01]} 47. Rb7 {[%clk 0:00:13]}  Rxh3+ {[%clk 0:00:02]} 48. Kg1 {[%clk 0:00:13]}  Bb5 {[%clk 0:00:02]} 49. Rb6+ {[%clk 0:00:12]}  Kf5 {[%clk 0:00:02]} 50. Be7 {[%clk 0:00:13]}  Rg3+ {[%clk 0:00:02]} 51. Kf2 {[%clk 0:00:12]}  Rh3 {[%clk 0:00:01]} 52. Rf6+ {[%clk 0:00:12]}  Ke5 {[%clk 0:00:01]} 53. Rg6 {[%clk 0:00:13]}  Rh2+ {[%clk 0:00:01]} 54. Kg1 {[%clk 0:00:13]}  Rh3 {[%clk 0:00:01]} 55. Rxg5+ {[%clk 0:00:13]}  Ke6 {[%clk 0:00:02]} 56. Bd8 {[%clk 0:00:13]}  Rxf3 {[%clk 0:00:02]} 57. Kg2 {[%clk 0:00:13]}  Rg3+ {[%clk 0:00:02]} 58. Kf2 {[%clk 0:00:12]}  Rxg5 {[%clk 0:00:02]} 59. Bxg5 {[%clk 0:00:11]}  Kf5 {[%clk 0:00:03]} 60. Bh6 {[%clk 0:00:11]}  Ke4 {[%clk 0:00:03]} 61. Bf8 {[%clk 0:00:11]}  f3 {[%clk 0:00:03]} 62. Bc5 {[%clk 0:00:10]}  Be2 {[%clk 0:00:03]} 63. Bb6 {[%clk 0:00:10]}  Kd5 {[%clk 0:00:03]} 64. Be3 {[%clk 0:00:10]}  Kc4 {[%clk 0:00:04]} 65. Bb6 {[%clk 0:00:10]}  Kb5 {[%clk 0:00:05]} 66. Ke3 {[%clk 0:00:11]}  Kc4 {[%clk 0:00:06]} 67. Kf2 {[%clk 0:00:11]}  Kb5 {[%clk 0:00:06]} 68. Ke3 {[%clk 0:00:11]}  Kc6 {[%clk 0:00:07]} 69. Kf2 {[%clk 0:00:12]}  Kb5 {[%clk 0:00:07]} 1/2-1/2